bitfinex/quotes_SOLUSD_20241222
["timestamp","ask_amount","ask_price","bid_price","bid_amount"]
[1734888666464,1.02818798,182.4,182.28,26.0640176]
[1734888666653,1.02818798,182.4,182.29,26.0640176]
[1734888666970,1.02818798,182.4,182.3,26.0640176]
[1734888667270,5.68500559,182.41,182.3,26.0640176]
[1734888667450,4.6569,182.41,182.32,100.6640176]
[1734888667651,0.9153,182.42,182.33,26.0640176]
[1734888667853,1.02800729,182.44,182.33,100.6640176]
[1734888668362,4.6569,182.46,182.3,19.8856]
[1734888668363,1.02788134,182.45,182.35,100.6640176]
[1734888668547,4.6569,182.46,182.36,26.0640176]
[1734888668749,0.6868931,182.49,182.39,100.6640176]
[1734888668974,0.6868931,182.49,182.4,26.0640176]
[1734888669265,0.6868931,182.49,182.39,100.6640176]
[1734888669458,1.02757354,182.48,182.39,74.6]
[1734888670373,31.98767354,182.48,182.34,74.6]
[1734888670871,20.0,182.44,182.34,74.6]
[1734888671075,1.0279083,182.43,182.34,74.6]
[1734888671274,20.0,182.44,182.34,100.6640176]
[1734888671576,20.0,182.44,182.35,26.0640176]
[1734888672592,20.0,182.45,182.36,100.6640176]
[1734888672877,20.0,182.45,182.37,26.0640176]
[1734888673069,23.776884,182.48,182.38,100.6640176]
[1734888673263,1.7144994,182.49,182.38,100.6640176]
[1734888673468,0.6868931,182.49,182.38,100.6640176]
[1734888673981,0.6868931,182.49,182.42,46.0640176]
[1734888674159,0.6868931,182.49,182.44,26.0640176]
[1734888674864,0.6868931,182.49,182.43,26.0640176]
[1734888675063,0.6868931,182.49,182.42,74.6]
[1734888677459,0.6868931,182.49,182.4,74.6]
[1734888677972,0.6868931,182.49,182.4,100.6640176]
[1734888678180,0.6868931,182.49,182.41,26.0640176]
[1734888678875,0.6868931,182.49,182.42,26.0640176]
[1734888679176,0.6868931,182.49,182.44,26.0640176]
[1734888680465,0.6868931,182.49,182.44,100.6640176]
[1734888680776,0.6868931,182.49,182.37,27.4165]
[1734888680777,0.6868931,182.49,182.46,100.6640176]
[1734888681164,0.6868931,182.49,182.47,26.0640176]
[1734888681365,0.6868931,182.49,182.48,120.6640176]
[1734888682476,0.6868931,182.49,182.48,74.6]
[1734888682782,0.6868931,182.49,182.46,74.6]
[1734888686178,0.6868931,182.49,182.48,26.0640176]
[1734888686564,0.6868931,182.49,182.48,100.6640176]
[1734888687781,0.6868931,182.49,182.48,74.6]
[1734888688154,0.6868931,182.49,182.46,74.6]
[1734888688787,0.6868931,182.49,182.46,100.6640176]
[1734888688961,0.6868931,182.49,182.48,26.0640176]
[1734888689287,0.6868931,182.49,182.48,100.6640176]
[1734888689676,9.31e-05,182.49,182.48,124.4409016]
[1734888689876,9.31e-05,182.49,182.48,130.4598016]
[1734888690067,9.31e-05,182.49,182.48,132.0998016]
[1734888690389,0.9153,182.62,182.51,23.776884]
[1734888690684,0.9153,182.62,182.51,49.8409016]
[1734888691276,20.9153,182.62,182.51,49.8409016]
[1734888691586,20.9153,182.62,182.52,13.6971]
[1734888691979,20.0,182.58,182.48,76.2399069]
[1734888692189,1.02714211,182.57,182.48,74.5999069]
[1734888692570,28.433784,182.56,182.48,74.5999069]
[1734888693078,20.0,182.58,182.48,74.5999069]
[1734888693278,20.0,182.57,182.48,74.5999069]
[1734888695866,1.027066,182.56,182.48,74.5999069]
[1734888696282,0.9153,182.54,182.44,74.5999069]
[1734888696597,1.02741807,182.53,182.44,74.5999069]
[1734888697294,20.0,182.52,182.41,88.3049069]
[1734888697483,1.02755778,182.51,182.41,74.5999069]
[1734888698211,1.02755778,182.51,182.39,74.5999069]
[1734888698386,23.776884,182.5,182.39,74.5999069]
[1734888698570,20.0,182.47,182.37,88.3076069]
[1734888698769,1.02780195,182.46,182.35,76.24]
[1734888699274,24.692184,182.45,182.35,74.6]
[1734888699482,1.027948,182.44,182.35,74.6]
[1734888699693,20.0,182.42,182.33,80.6189]
[1734888700192,1.027948,182.44,182.34,42.26140702]
[1734888700372,0.9153,182.45,182.35,42.26140702]
[1734888700987,5.5722,182.52,182.43,42.26140702]
[1734888701488,0.9153,182.52,182.44,116.86140702]
[1734888701695,0.9153,182.56,182.45,116.86140702]
[1734888701874,0.9153,182.56,182.46,42.26140702]
[1734888703094,23.776884,182.55,182.45,74.6]
[1734888703273,1.02738088,182.54,182.45,74.6]
[1734888703794,1.02730248,182.54,182.45,74.6]
[1734888703994,23.776884,182.53,182.45,74.6]
[1734888704196,1.02743863,182.54,182.45,20.0]
[1734888704384,21.02743863,182.54,182.45,20.0]
[1734888706603,23.776884,182.53,182.42,88.3044]
[1734888706798,1.02752989,182.52,182.42,88.3044]
[1734888706983,1.02752989,182.52,182.42,74.6]
[1734888707784,24.80435505,182.53,182.42,116.86140702]
[1734888708291,24.80435505,182.53,182.42,74.6]
[1734888708510,24.80435505,182.53,182.42,116.86140702]
[1734888709013,24.80435505,182.53,182.43,42.26140702]
[1734888709186,24.80435505,182.53,182.42,116.86140702]
[1734888709386,24.80435505,182.53,182.42,74.6]
[1734888710501,24.80435505,182.53,182.42,116.86140702]
[1734888710908,24.77434605,182.53,182.42,116.86140702]
[1734888712207,24.77434605,182.53,182.42,74.6]
[1734888712612,20.0,182.5,182.42,74.6]
[1734888713811,1.02753567,182.52,182.42,116.86140702]
[1734888714308,1.02753567,182.52,182.42,74.6]
[1734888715212,20.0,182.5,182.42,74.6]
[1734888715816,1.02753567,182.52,182.42,74.6]
[1734888715990,20.0,182.5,182.42,74.6]
[1734888717814,20.0,182.5,182.42,116.86140702]
[1734888718115,0.9153,182.56,182.47,42.26140702]
[1734888718590,1.94243917,182.56,182.46,42.97192517]
[1734888718791,1.94243917,182.56,182.46,74.6]
[1734888719611,20.0,182.54,182.46,74.6]
[1734888720906,24.80421277,182.53,182.43,88.3038]
[1734888721213,24.80421277,182.53,182.43,13.7038]
[1734888722012,20.0,182.5,182.4,88.3059]
[1734888722189,1.02763871,182.49,182.4,88.3059]
[1734888723524,20.0,182.5,182.4,114.28754217]
[1734888723690,20.0,182.5,182.41,25.98164217]
[1734888724097,20.0,182.5,182.4,114.28754217]
[1734888724816,1.0274632,182.49,182.4,88.3059]
[1734888725145,1.0274632,182.49,182.4,74.6]
[1734888725146,5.5722,182.48,182.4,74.6]
[1734888725304,1.02772051,182.47,182.4,74.6]
[1734888725506,1.02772051,182.47,182.37,88.308]
[1734888726223,23.776884,182.46,182.37,13.708]
[1734888726423,1.02780676,182.45,182.37,13.708]
[1734888726798,6.59999542,182.48,182.37,39.68964217]
[1734888728124,5.5722,182.48,182.39,39.68844217]
[1734888728311,1.02769896,182.47,182.39,13.7068]
[1734888728630,5.5722,182.48,182.39,13.7068]
[1734888729005,5.5722,182.48,182.39,39.68844217]
[1734888729205,5.5722,182.48,182.4,25.98164217]
[1734888729428,0.9153,182.48,182.41,114.28694217]
[1734888729595,20.0,182.5,182.41,114.28694217]
[1734888730431,5.5722,182.53,182.44,39.68474217]
[1734888731732,5.5722,182.53,182.45,25.98164217]
[1734888732028,5.5722,182.53,182.44,114.28474217]
[1734888732226,0.9153,182.53,182.45,26.69251806]
[1734888732422,1.02743982,182.56,182.46,25.98164217]
[1734888732644,1.02743982,182.56,182.45,26.69251806]
[1734888733624,20.0,182.55,182.46,13.7016]
[1734888734428,0.9153,182.57,182.47,100.58164217]
[1734888734633,1.94250198,182.61,182.5,120.58164217]
[1734888735135,60.79515993,182.55,182.5,120.58164217]
[1734888735527,60.79515993,182.55,182.52,25.98164217]
[1734888735913,60.79515993,182.55,182.51,39.67944217]
[1734888736113,60.79515993,182.55,182.51,114.27944217]
[1734888736532,60.79515993,182.55,182.52,25.98164217]
[1734888736728,60.79515993,182.55,182.53,39.67794217]
[1734888737109,60.79515993,182.55,182.53,13.6963]
[1734888737535,60.79515993,182.55,182.51,74.6]
[1734888740621,60.79515993,182.55,182.5,114.28014217]
[1734888741733,60.79515993,182.55,182.54,25.98164217]
[1734888742437,60.79515993,182.55,182.53,25.98164217]
[1734888743140,60.79515993,182.55,182.54,114.27724217]
[1734888743718,56.91785993,182.55,182.54,114.27724217]
[1734888744017,39.86085993,182.55,182.54,138.05412617]
[1734888744422,24.50465993,182.55,182.54,139.65312617]
[1734888744919,1.33405993,182.55,182.54,139.77861617]
[1734888745224,0.6868931,182.67,182.58,94.6]
[1734888745433,0.6868931,182.67,182.62,25.98164217]
[1734888745641,0.6868931,182.67,182.63,25.98164217]
[1734888746515,0.6868931,182.67,182.65,25.98164217]
[1734888746716,0.6868931,182.67,182.66,25.98164217]
[1734888746923,0.6868931,182.67,182.66,100.58164217]
[1734888748241,0.6868931,182.67,182.66,74.6]
[1734888748550,0.6868931,182.67,182.66,100.58164217]
[1734888748916,9.31e-05,182.67,182.66,100.58164217]
[1734888749740,9.31e-05,182.67,182.66,124.35852617]
[1734888752119,9.31e-05,182.67,182.66,100.58164217]
[1734888753730,9.31e-05,182.67,182.66,124.35852617]
[1734888755038,9.31e-05,182.67,182.66,100.58164217]
[1734888755440,9.31e-05,182.67,182.66,74.6]
[1734888755737,9.31e-05,182.67,182.65,25.98164217]
[1734888755927,9.31e-05,182.67,182.66,25.98164217]
[1734888757018,9.31e-05,182.67,182.65,25.98164217]
[1734888758622,9.31e-05,182.67,182.64,114.26904217]
[1734888758817,9.31e-05,182.67,182.64,100.58164217]
[1734888759026,9.31e-05,182.67,182.64,74.6]
[1734888759422,9.31e-05,182.67,182.61,25.98164217]
[1734888759624,9.31e-05,182.67,182.59,25.98164217]
[1734888760547,9.31e-05,182.67,182.59,100.58164217]
[1734888760765,1.02668932,182.67,182.59,74.6]
[1734888761054,1.02668932,182.67,182.59,100.58164217]
[1734888761256,9.31e-05,182.67,182.59,100.58164217]
[1734888761744,9.31e-05,182.67,182.6,25.98164217]
[1734888761950,9.31e-05,182.67,182.62,25.98164217]
[1734888762129,9.31e-05,182.67,182.61,25.98164217]
[1734888763042,9.31e-05,182.67,182.61,100.58164217]
[1734888763236,9.31e-05,182.67,182.62,25.98164217]
[1734888763624,9.31e-05,182.67,182.63,25.98164217]
[1734888764052,9.31e-05,182.67,182.63,100.58164217]
[1734888764827,9.31e-05,182.67,182.64,25.98164217]
[1734888765047,9.31e-05,182.67,182.63,100.58164217]
[1734888766053,9.31e-05,182.67,182.63,74.6]
[1734888767652,9.31e-05,182.67,182.62,114.27074217]
[1734888768254,9.31e-05,182.67,182.56,74.6]
[1734888768557,0.9153,182.65,182.56,74.6]
[1734888768758,1.94204617,182.65,182.56,74.6]
[1734888768935,0.9153,182.65,182.58,25.98164217]
[1734888769140,9.31e-05,182.67,182.6,100.58164217]
[1734888769456,9.31e-05,182.67,182.61,25.98164217]
[1734888770638,9.31e-05,182.67,182.63,25.98164217]
[1734888770956,9.31e-05,182.67,182.64,25.98164217]
[1734888771950,9.31e-05,182.67,182.64,40.37785456]
[1734888772333,9.31e-05,182.67,182.64,13.6876]
[1734888773160,9.31e-05,182.67,182.64,39.66924217]
[1734888775058,9.31e-05,182.67,182.64,114.26924217]
[1734888775258,9.31e-05,182.67,182.64,88.2876]
[1734888775456,9.31e-05,182.67,182.64,74.6]
[1734888778033,9.31e-05,182.67,182.65,25.98164217]
[1734888778362,9.31e-05,182.67,182.64,100.58164217]
[1734888778538,9.31e-05,182.67,182.65,25.98164217]
[1734888779664,9.31e-05,182.67,182.65,100.58164217]
[1734888780240,9.31e-05,182.67,182.66,25.98164217]
[1734888780443,9.31e-05,182.67,182.65,74.6]
[1734888780662,9.31e-05,182.67,182.65,100.58164217]
[1734888781367,9.31e-05,182.67,182.66,100.58164217]
[1734888781573,9.31e-05,182.67,182.66,124.48401617]
[1734888781949,9.31e-05,182.67,182.66,124.35852617]
[1734888783954,9.31e-05,182.67,182.66,100.58164217]
[1734888787177,9.31e-05,182.67,182.65,114.26834217]
[1734888787355,9.31e-05,182.67,182.65,88.2867]
[1734888787752,9.31e-05,182.67,182.65,114.26834217]
[1734888797084,9.31e-05,182.67,182.65,88.2867]
[1734888799776,9.31e-05,182.67,182.65,74.6]
[1734888799977,9.31e-05,182.67,182.62,74.6]
[1734888800273,9.31e-05,182.67,182.6,100.58164217]
[1734888800480,9.31e-05,182.67,182.61,25.98164217]
[1734888801053,9.31e-05,182.67,182.62,25.98164217]
[1734888802179,9.31e-05,182.67,182.63,25.98164217]
[1734888802957,9.31e-05,182.67,182.66,25.98164217]
[1734888803157,9.31e-05,182.67,182.66,26.69001269]
[1734888803356,9.31e-05,182.67,182.66,101.29001269]
[1734888803580,9.31e-05,182.67,182.66,124.35852617]
[1734888803766,9.31e-05,182.67,182.66,124.48401617]
[1734888806084,20.0,182.79,182.69,23.776884]
[1734888806279,20.0,182.79,182.72,100.58154907]
[1734888808882,0.9153,182.8,182.73,100.58154907]
[1734888809479,0.9153,182.8,182.73,74.5999069]
[1734888810376,1.02580301,182.84,182.73,101.2891727]
[1734888810685,20.0,182.84,182.73,100.58154907]
[1734888810984,20.0,182.84,182.75,25.98164217]
[1734888811490,20.0,182.84,182.75,74.5999069]
[1734888811695,0.9153,182.85,182.76,26.68881338]
[1734888813199,20.0,182.84,182.75,100.58154907]
[1734888813498,1.02557793,182.83,182.75,74.5999069]
[1734888815790,1.02557793,182.83,182.74,100.58154907]
[1734888816199,1.02557793,182.83,182.74,90.7853583]
[1734888819803,20.0,182.84,182.77,16.1854514]
[1734888819994,0.9153,182.85,182.78,16.1854514]
[1734888820297,1.94076476,182.85,182.77,16.1854514]
[1734888820469,0.9153,182.85,182.77,16.1854514]
[1734888821570,20.0,182.84,182.77,16.1854514]
[1734888822687,20.0,182.84,182.78,16.1854514]
[1734888823491,20.0,182.84,182.77,16.1854514]
[1734888824301,20.0,182.84,182.75,16.1854514]
[1734888824793,20.0,182.84,182.76,16.1854514]
[1734888825303,20.0,182.84,182.75,16.1854514]
[1734888826104,20.0,182.84,182.76,16.1854514]
[1734888826615,20.0,182.84,182.75,16.1854514]
[1734888827707,20.0,182.84,182.76,16.1854514]
[1734888828394,0.6868931,182.86,182.78,16.1854514]
[1734888828797,0.6868931,182.86,182.81,16.1854514]
[1734888829109,0.6868931,182.86,182.8,16.1854514]
[1734888831598,0.6868931,182.86,182.81,75.30676889]
[1734888831915,0.6868931,182.86,182.85,16.1854514]
[1734888832493,9.31e-05,182.86,182.85,115.39386445]
[1734888832699,9.31e-05,182.86,182.85,114.6877323]
[1734888833502,9.31e-05,182.86,182.85,128.2346423]
[1734888833713,9.31e-05,182.86,182.85,104.4577583]
[1734888834801,9.31e-05,182.86,182.85,128.3601323]
[1734888835001,9.31e-05,182.86,182.85,128.2346423]
[1734888837814,9.31e-05,182.86,182.85,88.2723069]
[1734888838009,9.31e-05,182.86,182.85,90.7853583]
[1734888838806,9.31e-05,182.86,182.85,91.49123766]
[1734888839006,9.31e-05,182.86,182.85,90.7853583]
[1734888839217,9.31e-05,182.86,182.85,115.39354887]
[1734888839406,20.0,182.98,182.86,37.573974]
[1734888839593,20.0,182.98,182.93,16.1854514]
[1734888840224,20.0,182.98,182.93,25.84414666]
[1734888841019,0.9153,183.0,182.94,25.84414666]
[1734888842021,0.9153,183.0,182.93,25.84414666]
[1734888842716,0.9153,183.0,182.92,25.84414666]
[1734888842717,1.93995216,183.0,182.92,25.84414666]
[1734888842910,23.776884,182.99,182.89,74.5999069]
[1734888843109,20.0,182.96,182.88,25.84414666]
[1734888843314,1.02494194,182.95,182.88,25.84414666]
[1734888843516,1.02494194,182.95,182.86,114.11545356]
[1734888843813,20.0,182.94,182.86,74.5999069]
[1734888844004,1.02514237,182.93,182.84,25.84414666]
[1734888844323,0.9153,182.91,182.82,25.84414666]
[1734888844514,1.02529364,182.9,182.82,25.84414666]
[1734888844697,20.0,182.89,182.8,100.44405356]
[1734888844903,1.02540274,182.88,182.79,25.84414666]
[1734888845817,1.02540274,182.88,182.78,25.84414666]
[1734888846606,21.02540274,182.88,182.78,25.84414666]
[1734888847005,23.776884,182.87,182.78,25.84414666]
[1734888847329,1.02553074,182.86,182.79,25.84414666]
[1734888847824,1.02553074,182.86,182.78,25.84414666]
[1734888848200,1.02554161,182.87,182.78,25.84414666]
[1734888848399,1.02554161,182.87,182.77,25.84414666]
[1734888850427,1.02554161,182.87,182.78,25.84414666]
[1734888851317,1.02554161,182.87,182.77,25.84414666]
[1734888851823,1.02554161,182.87,182.78,25.84414666]
[1734888852402,1.02554161,182.87,182.77,25.84414666]
[1734888852602,1.02554161,182.87,182.78,25.84414666]
[1734888853010,20.0,182.83,182.75,25.84414666]
[1734888853303,1.02575213,182.82,182.73,25.84414666]
[1734888855026,23.776884,182.81,182.72,25.84414666]
[1734888855326,23.776884,182.79,182.71,25.84414666]
[1734888855528,23.776884,182.77,182.68,25.84414666]
[1734888855708,20.0,182.74,182.66,100.44405356]
[1734888855907,1.02621951,182.73,182.66,25.84414666]
[1734888856526,20.0,182.74,182.68,25.84414666]
[1734888857031,20.0,182.74,182.67,25.84414666]
[1734888857216,20.0,182.74,182.63,88.2887069]
[1734888857217,1.02613575,182.73,182.65,25.84414666]
[1734888857414,1.02613575,182.73,182.64,25.84414666]
[1734888857713,24.692184,182.72,182.62,25.84414666]
[1734888857914,20.0,182.69,182.61,25.84414666]
[1734888858101,1.02651562,182.68,182.61,25.84414666]
[1734888858500,20.0,182.69,182.62,25.84414666]
[1734888858703,24.692184,182.72,182.64,25.84414666]
[1734888858906,1.02630413,182.71,182.65,25.84414666]
[1734888859131,1.02630413,182.71,182.64,25.84414666]
[1734888860434,1.02630413,182.71,182.63,25.84414666]
[1734888860618,23.776884,182.7,182.61,25.84414666]
[1734888860932,20.0,182.66,182.57,25.84414666]
[1734888861131,1.02667287,182.65,182.57,25.84414666]
[1734888861504,4.6569,182.69,182.56,76.1185069]
[1734888861505,20.0,182.66,182.56,76.1185069]
[1734888861730,1.02672824,182.65,182.56,74.5999069]
[1734888863728,1.02672824,182.65,182.56,100.44405356]
[1734888863912,1.02672824,182.65,182.56,74.5999069]
[1734888865154,20.0,182.66,182.58,25.84414666]
[1734888865733,24.6569,182.69,182.61,25.84414666]
[1734888865947,1.94171221,182.72,182.62,25.84414666]
[1734888867015,23.776884,182.71,182.62,25.84414666]
[1734888867320,20.0,182.71,182.62,25.84414666]
[1734888867755,4.6569,182.74,182.63,25.84414666]
[1734888867930,4.6569,182.74,182.66,25.84414666]
[1734888870524,20.0,182.75,182.66,25.84414666]
[1734888871336,1.02613689,182.74,182.66,25.84414666]
[1734888871517,1.02613689,182.74,182.65,25.84414666]
[1734888871729,20.0,182.7,182.61,108.32695356]
[1734888871935,1.0264193,182.69,182.61,76.1540069]
[1734888872134,1.0264193,182.69,182.61,74.5999069]
[1734888872347,1.0264193,182.69,182.6,100.44405356]
[1734888872647,1.0264193,182.69,182.6,74.5999069]
[1734888872827,28.433784,182.68,182.6,74.5999069]
[1734888873025,1.02658147,182.67,182.6,74.5999069]
[1734888873543,1.02658147,182.67,182.55,13.6947]
[1734888873544,1.94188147,182.67,182.55,114.13875356]
[1734888873846,20.0,182.65,182.55,114.13875356]
[1734888874043,1.02670861,182.64,182.55,114.13875356]
[1734888874233,1.02670861,182.64,182.55,74.5999069]
[1734888874543,1.02670861,182.64,182.53,33.72704666]
[1734888874544,23.776884,182.63,182.53,33.72704666]
[1734888874744,1.02692713,182.62,182.52,74.5999069]
[1734888874946,1.02692713,182.62,182.52,100.44405356]
[1734888875135,23.776884,182.63,182.52,100.44405356]
[1734888875449,0.78525115,182.62,182.52,100.44405356]
[1734888875823,0.78525115,182.62,182.53,25.84414666]
[1734888876333,0.78525115,182.62,182.52,74.5999069]
[1734888876334,43.776884,182.64,182.55,25.84414666]
[1734888876538,20.0,182.64,182.56,25.84414666]
[1734888876843,20.0,182.65,182.57,25.84414666]
[1734888877052,20.0,182.65,182.58,25.84414666]
[1734888877218,20.0,182.65,182.57,25.84414666]
[1734888877623,20.0,182.65,182.58,25.84414666]
[1734888877823,1.70055115,182.67,182.59,25.84414666]
[1734888878247,1.70055115,182.67,182.58,25.84414666]
[1734888878448,1.70055115,182.67,182.57,25.84414666]
[1734888878748,23.776884,182.66,182.55,25.84414666]
[1734888878933,23.776884,182.64,182.55,25.84414666]
[1734888879132,0.78525115,182.63,182.55,25.84414666]
[1734888879340,23.776884,182.64,182.55,25.84414666]
[1734888879527,23.776884,182.64,182.56,25.84414666]
[1734888879945,0.78525115,182.63,182.56,25.84414666]
[1734888880434,20.0,182.65,182.57,25.84414666]
[1734888880631,20.0,182.65,182.58,25.84414666]
[1734888884553,20.0,182.65,182.57,25.84414666]
[1734888884853,20.0,182.65,182.58,25.84414666]
[1734888885354,0.9153,182.67,182.61,25.84414666]
[1734888885727,24.6569,182.68,182.61,25.84414666]
[1734888886150,24.6569,182.68,182.6,25.84414666]
[1734888888359,20.0,182.69,182.6,25.84414666]
[1734888888663,20.0,182.69,182.61,25.84414666]
[1734888889964,20.0,182.69,182.58,13.6921]
[1734888889965,20.0,182.69,182.62,25.84414666]
[1734888890166,20.0,182.69,182.63,25.84414666]
[1734888891066,20.0,182.69,182.62,25.84414666]
[1734888895265,0.9153,182.71,182.63,25.84414666]
[1734888895560,0.9153,182.75,182.67,25.84414666]
[1734888896147,0.9153,182.75,182.69,25.84414666]
[1734888898362,20.0,182.77,182.7,25.84414666]
[1734888898541,1.70055115,182.8,182.71,25.84414666]
[1734888898866,23.776884,182.79,182.71,25.84414666]
[1734888900073,23.776884,182.79,182.7,25.84414666]
[1734888900442,20.0,182.78,182.73,25.84414666]
[1734888900663,0.9153,182.8,182.73,25.84414666]
[1734888900860,1.70055115,182.8,182.73,25.84414666]
[1734888901064,0.9153,182.8,182.73,25.84414666]
[1734888901347,0.78525115,182.79,182.73,25.84414666]
[1734888901540,1.70055115,182.8,182.72,25.84414666]
[1734888902072,1.70055115,182.8,182.68,88.2847]
[1734888902073,1.70055115,182.8,182.73,25.84414666]
[1734888902380,0.9153,182.8,182.74,25.84414666]
[1734888902746,1.70055115,182.8,182.72,25.84414666]
[1734888903758,1.70055115,182.8,182.71,25.84414666]
[1734888903759,20.0,182.78,182.71,25.84414666]
[1734888903964,0.78525115,182.77,182.69,25.84414666]
[1734888905168,20.78525115,182.77,182.68,25.84414666]
[1734888906269,20.0,182.73,182.65,25.84414666]
[1734888906451,1.70055115,182.72,182.64,25.84414666]
[1734888906854,1.70055115,182.72,182.63,25.84414666]
[1734888907066,1.70055115,182.72,182.62,100.44414666]
[1734888907785,23.776884,182.71,182.62,74.6]
[1734888907984,23.776884,182.71,182.59,13.6915]
[1734888907985,20.0,182.68,182.59,39.53564666]
[1734888908283,0.78525115,182.67,182.59,25.84414666]
[1734888908971,0.78525115,182.67,182.6,25.84414666]
[1734888909387,20.0,182.68,182.61,25.84414666]
[1734888911311,20.0,182.68,182.6,25.84414666]
[1734888911470,0.78525115,182.67,182.59,25.84414666]
[1734888911679,23.776884,182.66,182.57,25.84414666]
[1734888911907,0.78525115,182.65,182.57,25.84414666]
[1734888912774,23.776884,182.64,182.57,25.84414666]
[1734888912963,23.776884,182.64,182.53,0.82133714]
[1734888912964,1.70055115,182.63,182.54,25.84414666]
[1734888913169,1.70055115,182.63,182.55,25.84414666]
[1734888913416,20.0,182.63,182.57,25.84414666]
[1734888913604,20.0,182.63,182.59,25.84414666]
[1734888913901,20.0,182.66,182.59,25.84414666]
[1734888914501,1.70055115,182.68,182.61,25.84414666]
[1734888914502,0.9153,182.68,182.61,25.84414666]
[1734888914702,0.9153,182.68,182.63,25.84414666]
[1734888915013,0.9153,182.68,182.62,25.84414666]
[1734888915873,0.78525115,182.73,182.65,45.96963666]
[1734888916080,10.0121715,182.81,182.72,25.84414666]
[1734888916312,8.31162035,182.81,182.76,25.84414666]
[1734888916595,0.78525115,182.8,182.74,25.84414666]
[1734888916795,0.78525115,182.8,182.73,25.84414666]
[1734888916986,0.78525115,182.8,182.72,25.84414666]
[1734888917492,0.78525115,182.8,182.73,25.84414666]
[1734888917687,4.6569,182.82,182.73,25.84414666]
[1734888917688,0.78525115,182.81,182.73,25.84414666]
[1734888918378,0.78525115,182.81,182.67,13.6851]
[1734888918379,23.776884,182.8,182.71,25.84414666]
[1734888918577,20.78525115,182.79,182.71,25.84414666]
[1734888919784,20.0,182.77,182.73,25.84414666]
[1734888919983,0.78525115,182.79,182.73,25.84414666]
[1734888920200,0.78525115,182.79,182.72,25.84414666]
[1734888920799,0.78525115,182.79,182.73,25.84414666]
[1734888921303,0.78525115,182.79,182.72,25.84414666]
[1734888921889,23.776884,182.78,182.7,25.84414666]
[1734888922089,0.78525115,182.77,182.7,25.84414666]
[1734888923197,20.0,182.75,182.69,25.84414666]
[1734888923406,0.78525115,182.74,182.65,25.84414666]
[1734888923901,23.776884,182.73,182.64,25.84414666]
[1734888924104,23.776884,182.71,182.62,25.84414666]
[1734888924319,0.78525115,182.7,182.61,25.84414666]
[1734888924618,0.78525115,182.7,182.62,25.84414666]
[1734888924823,20.0,182.68,182.61,25.84414666]
[1734888925523,20.0,182.68,182.59,6.0126]
[1734888925524,20.0,182.68,182.62,25.84414666]
[1734888926310,20.0,182.68,182.61,25.84414666]
[1734888926904,20.0,182.68,182.62,25.84414666]
[1734888928208,4.6569,182.73,182.64,25.84414666]
[1734888928391,0.78525115,182.72,182.65,25.84414666]
[1734888929197,4.6569,182.73,182.65,25.84414666]
[1734888929525,0.78525115,182.72,182.65,25.84414666]
[1734888929916,4.6569,182.73,182.67,25.84414666]
[1734888930118,1.70055115,182.76,182.68,25.84414666]
[1734888930354,1.70055115,182.76,182.63,75.42092262]
[1734888930355,0.78525115,182.76,182.7,25.84414666]
[1734888930532,0.78525115,182.8,182.74,25.84414666]
[1734888930840,0.78525115,182.81,182.74,25.84414666]
[1734888931315,0.78525115,182.81,182.75,25.84414666]
[1734888931493,0.78525115,182.81,182.74,25.84414666]
[1734888933100,0.78525115,182.81,182.7,13.6833]
[1734888933411,0.78525115,182.81,182.72,25.84414666]
[1734888933812,20.0,182.79,182.72,25.84414666]
[1734888934309,0.78525115,182.78,182.7,25.84414666]
[1734888934887,0.78525115,182.78,182.71,25.84414666]
[1734888935103,0.78525115,182.78,182.7,25.84414666]
[1734888935519,0.78525115,182.78,182.71,25.84414666]
[1734888935718,20.0,182.79,182.74,25.84414666]
[1734888936421,20.0,182.79,182.73,25.84414666]
[1734888936797,5.5722,182.82,182.74,25.84414666]
[1734888937298,0.78525115,182.81,182.74,25.84414666]
[1734888937699,0.78525115,182.84,182.77,25.84414666]
[1734888938117,0.78525115,182.85,182.77,25.84414666]
[1734888940099,0.78525115,182.85,182.78,25.84414666]
[1734888941021,20.0,182.88,182.81,25.84414666]
[1734888941209,20.0,182.88,182.82,25.84414666]
[1734888941520,0.78525115,182.91,182.82,25.84414666]
[1734888942825,23.776884,182.9,182.82,25.84414666]
[1734888943029,23.776884,182.88,182.78,25.84414666]
[1734888943231,0.78525115,182.87,182.78,25.84414666]
[1734888943723,0.78525115,182.87,182.79,25.84414666]
[1734888944127,12.3011,182.91,182.76,14.49908664]
[1734888944128,0.78525115,182.9,182.8,25.84414666]
[1734888944428,20.0,182.88,182.81,25.84414666]
[1734888944812,20.0,182.88,182.82,25.84414666]